bitfinex/quotes_ETHUSD_20240729
["timestamp","ask_amount","ask_price","bid_price","bid_amount"]
[1722212035866,2.671922,3293.5,3293.4,0.13692529]
[1722212036001,2.42911,3293.4,3292.6,2.42968]
[1722212036699,2.42899,3293.6,3292.7,2.42961]
[1722212036898,2.42844,3294.3,3293.2,2.42924]
[1722212037097,2.42866,3294.0,3293.0,2.42934]
[1722212037340,2.42866,3294.0,3293.1,2.42929]
[1722212037840,2.42874,3293.9,3293.1,2.42929]
[1722212038152,1.180308,3294.4,3292.8,9.952481]
[1722212038153,2.42882,3293.8,3292.8,9.952481]
[1722212038436,5.84164,3294.1,3293.3,2.42914]
[1722212038437,3.413,3294.1,3293.3,2.42914]
[1722212038611,2.42866,3294.0,3293.1,2.42927]
[1722212038814,2.42866,3294.0,3293.2,2.42923]
[1722212039214,5.84159,3294.1,3293.3,2.42912]
[1722212039637,3.655784,3295.1,3294.3,2.42837]
[1722212039841,2.42786,3295.1,3294.1,2.42854]
[1722212040018,2.4636,3295.4,3294.6,2.42821]
[1722212040321,2.4636,3295.4,3294.4,2.42836]
[1722212040322,2.4276,3295.5,3294.4,2.4283]
[1722212040532,2.42762,3295.4,3294.6,2.42816]
[1722212040731,3.413,3295.6,3294.5,0.24283]
[1722212041066,2.42757,3295.5,3294.5,0.24283]
[1722212041249,2.42785,3295.1,3293.8,2.4645]
[1722212041547,2.42785,3295.1,3293.7,9.70883]
[1722212041548,2.42816,3294.7,3293.7,9.70883]
[1722212041773,2.42816,3294.7,3293.9,2.42872]
[1722212041905,2.3058,3295.0,3293.7,9.70882]
[1722212042109,2.42844,3294.3,3293.7,7.28]
[1722212042329,3.413,3294.6,3293.4,19.65]
[1722212042330,5.84122,3294.6,3293.4,19.65]
[1722212042530,5.84122,3294.6,3293.6,2.42894]
[1722212042531,2.42823,3294.6,3293.6,2.42894]
[1722212042729,2.42851,3294.2,3293.4,19.65]
[1722212043007,2.4287,3294.0,3293.4,19.65]
[1722212043361,2.42881,3293.8,3293.1,7.28]
[1722212043504,2.42888,3293.7,3293.1,7.28]
[1722212043739,2.42873,3293.9,3293.1,7.28]
[1722212043934,2.42848,3294.3,3293.1,7.28]
[1722212044233,2.3675,3294.5,3293.2,0.06072004]
[1722212044473,2.42809,3294.8,3293.7,2.42887]
[1722212044635,2.42809,3294.8,3293.8,0.242887]
[1722212044636,2.42822,3294.6,3293.8,0.242887]
[1722212044837,2.42807,3294.8,3294.0,2.42865]
[1722212045153,6.413,3295.1,3294.2,2.4285]
[1722212045154,2.42799,3294.9,3294.2,2.4285]
[1722212045486,3.413,3295.1,3294.0,2.42865]
[1722212045487,2.42797,3295.0,3294.0,2.42865]
[1722212045778,3.413,3294.6,3293.5,7.28]
[1722212046186,5.84126,3294.6,3293.7,2.42882]
[1722212046348,3.413,3294.6,3293.9,2.4287]
[1722212046535,2.42804,3294.9,3293.9,2.4287]
[1722212046735,2.42804,3294.9,3293.5,7.28]
[1722212046736,6.413,3295.1,3294.0,0.13182535]
[1722212047048,2.42794,3295.0,3294.0,0.13182535]
[1722212047380,2.9687255,3295.3,3294.5,2.42824]
[1722212047534,0.34605605,3295.2,3294.1,0.13176242]
[1722212047741,2.4277,3295.3,3294.5,2.42823]
[1722212047936,2.42778,3295.2,3294.6,0.13144783]
[1722212048177,2.4277,3295.3,3291.9,4.14153636]
[1722212048178,2.42767,3295.4,3294.4,2.42836]
[1722212048341,2.42757,3295.5,3294.5,2.42822]
[1722212048536,2.42767,3295.4,3294.5,2.42822]
[1722212048754,2.913274,3295.3,3294.6,0.13144783]
[1722212049012,2.42795,3295.0,3294.6,0.13144783]
[1722212049155,2.42779,3295.2,3294.6,0.13144783]
[1722212049700,2.42779,3295.2,3294.3,2.42843]
[1722212049919,2.42779,3295.2,3294.2,2.4285]
[1722212049920,2.42797,3295.0,3294.2,2.4285]
[1722212050196,2.42797,3295.0,3294.3,0.13157444]
[1722212050349,2.428,3294.9,3294.3,0.13157444]
[1722212050869,2.428,3294.9,3294.1,2.42858]
[1722212050870,5.84118,3294.7,3293.6,2.42893]
[1722212051200,4.222288,3294.7,3293.8,2.42875]
[1722212051387,6.650428,3294.7,3294.0,2.42863]
[1722212051552,4.222288,3294.7,3293.9,0.13182845]
[1722212051750,3.413,3294.7,3294.2,2.42846]
[1722212052182,3.413,3294.7,3294.3,0.13157675]
[1722212052581,3.413,3294.7,3293.8,2.42875]
[1722212052786,2.42821,3294.6,3294.4,0.13151383]
[1722212053094,3.413,3294.7,3293.9,2.42871]
[1722212053462,5.84116,3294.7,3293.9,2.42871]
[1722212053655,6.66808,3294.7,3294.0,0.13176552]
[1722212053853,6.66808,3294.7,3294.0,2.56041552]
[1722212054306,4.23992,3294.7,3294.0,2.56041552]
[1722212054594,2.42786,3295.1,3294.2,2.42847]
[1722212054894,2.42801,3294.9,3294.0,2.56036552]
[1722212055102,2.42801,3294.9,3294.3,0.13157675]
[1722212055305,0.61321914,3295.0,3294.4,0.13151383]
[1722212055505,0.61321914,3295.0,3294.0,2.42863]
[1722212055801,2.42812,3294.8,3294.1,0.13170259]
[1722212055990,0.54693191,3294.8,3294.1,0.13170259]
[1722212056213,0.54693191,3294.8,3294.1,2.42851]
[1722212056397,0.54693191,3294.8,3294.2,0.13163967]
[1722212056618,0.54693191,3294.8,3294.2,2.56011967]
[1722212056918,3.413,3295.2,3294.4,2.42833]
[1722212057063,6.7308924,3295.7,3294.4,2.42833]
[1722212057264,3.0,3295.6,3294.5,0.13145091]
[1722212057711,2.42783,3295.2,3294.5,0.13145091]
[1722212057874,2.42785,3295.1,3294.5,0.13145091]
[1722212058076,2.42804,3294.9,3294.1,2.42853]
[1722212058304,0.485568,3295.1,3294.2,2.42849]
[1722212058305,2.913468,3295.1,3294.2,2.42849]
[1722212058608,2.3942,3296.4,3294.3,2.3931]
[1722212058815,2.42756,3295.5,3294.5,2.42826]
[1722212059020,2.42752,3295.6,3294.7,2.42813]
[1722212059169,2.42752,3295.6,3294.6,2.42815]
[1722212059170,3.413,3295.8,3294.6,2.55951584]
[1722212059516,3.413,3295.8,3294.3,9.6731]
[1722212059517,2.42769,3295.4,3294.8,0.13119773]
[1722212059659,2.42769,3295.4,3294.7,0.13126063]
[1722212060016,2.42752,3295.6,3294.8,2.55925773]
[1722212060189,5.84035,3295.8,3294.8,2.55925773]
[1722212060190,3.413,3295.8,3294.8,0.13119773]
[1722212060392,3.413,3295.8,3294.9,4.85592]
[1722212060393,5.84033,3295.8,3294.9,4.85592]
[1722212060556,2.42741,3295.7,3294.9,2.42793]
[1722212060757,3.413,3296.4,3295.8,2.42732]
[1722212061010,3.413,3296.4,3295.6,2.42741]
[1722212061011,5.83989,3296.4,3295.6,2.42741]
[1722212061173,5.83989,3296.4,3295.2,7.28]
[1722212061174,2.42696,3296.3,3295.9,0.13045544]
[1722212061377,3.996989,3296.4,3295.4,2.42762]
[1722212061570,3.996989,3296.4,3295.2,7.28]
[1722212061571,2.42711,3296.1,3296.0,0.13039258]
[1722212061809,2.42711,3296.1,3295.2,7.28]
[1722212061810,6.423899,3296.4,3295.2,7.28]
[1722212061963,2.427,3296.3,3295.5,2.42753]
[1722212062476,2.427,3296.3,3295.6,2.55810403]
[1722212062676,0.31785511,3296.8,3296.5,2.42675]
[1722212062881,0.31785511,3296.8,3296.5,2.42681]
[1722212063076,0.31785511,3296.8,3296.7,4.85332]
[1722212063276,2.42599,3297.7,3296.7,2.55647468]
[1722212063525,0.583899,3297.6,3296.7,2.55647468]
[1722212063795,2.42621,3297.4,3296.7,0.12981468]
[1722212063951,5.83923,3297.3,3296.7,0.12981468]
[1722212064109,2.42636,3297.2,3296.2,9.70703]
[1722212064439,3.413,3297.3,3296.8,0.12951275]
[1722212065159,3.413,3297.3,3296.7,2.4266]
[1722212065353,3.413,3297.3,3296.9,0.12941545]
[1722212065503,3.996908,3297.3,3296.7,2.42665]
[1722212065705,3.996908,3297.3,3296.8,0.12947827]
[1722212065948,3.996908,3297.3,3296.5,2.4268]
[1722212066115,3.996908,3297.3,3296.6,0.12960393]
[1722212066856,3.996908,3297.3,3296.6,2.55634393]
[1722212067006,2.3251,3297.6,3296.9,2.42651]
[1722212067205,3.413,3297.7,3296.9,2.42651]
[1722212067434,2.42573,3298.0,3297.1,2.42635]
[1722212067752,2.42573,3298.0,3296.2,7.28]
[1722212067753,2.42578,3297.9,3297.2,0.1292362]
[1722212068060,2.42613,3297.5,3296.6,2.42672]
[1722212068218,2.42615,3297.4,3297.3,0.12917339]
[1722212068558,2.42615,3297.4,3296.5,19.65]
[1722212068840,2.42615,3297.4,3296.6,0.12957865]
[1722212068841,2.42642,3297.1,3296.6,0.12957865]
[1722212069711,2.42613,3297.5,3296.7,2.42666]
[1722212069910,5.42603,3297.6,3296.8,0.12945299]
[1722212070110,6.780518,3297.6,3296.8,0.12945299]
[1722212070311,3.0,3297.6,3296.8,0.12945299]
[1722212070511,2.4258,3297.9,3296.8,2.42659]
[1722212070724,2.42586,3297.8,3296.9,0.12939017]
[1722212070930,2.426,3297.6,3296.9,0.12939017]
[1722212071115,2.42609,3297.5,3296.9,0.12939017]
[1722212071312,2.426,3297.6,3296.8,2.42655]
[1722212071514,3.0,3297.8,3297.0,2.42643]
[1722212071859,3.0,3298.0,3297.0,2.42643]
[1722212072071,4.8259,3298.3,3297.3,2.42622]
[1722212072374,5.83836,3298.5,3297.7,2.42591]
[1722212072513,2.42536,3298.5,3297.5,2.42606]
[1722212072712,2.42536,3298.5,3297.7,2.42592]
[1722212072934,2.42536,3298.5,3297.8,0.12825928]
[1722212073141,2.42546,3298.4,3297.8,0.12825928]
[1722212073354,2.4255,3298.3,3297.5,2.42606]
[1722212073552,2.4255,3298.3,3297.3,2.4262]
[1722212073553,2.4255,3298.3,3297.6,2.426]
[1722212073790,2.42536,3298.5,3297.6,2.55438486]
[1722212073920,2.42536,3298.5,3297.7,2.42593]
[1722212073921,2.69966449,3298.5,3297.7,2.42593]
[1722212074115,2.69966449,3298.5,3297.8,0.12825928]
[1722212074551,2.69968449,3298.5,3297.8,0.12825928]
[1722212074719,2.42561,3298.2,3297.3,2.42615]
[1722212074920,2.42573,3298.0,3297.4,0.12851045]
[1722212075130,2.42573,3298.0,3297.2,2.42627]
[1722212075330,2.42573,3298.0,3297.3,0.12857325]
[1722212075974,2.42601,3297.6,3297.3,0.12857325]
[1722212076379,2.42595,3297.7,3296.8,2.42658]
[1722212076527,5.83879,3297.9,3297.4,0.12851045]
[1722212076733,2.42587,3297.8,3297.0,2.42644]
[1722212076971,2.42587,3297.8,3297.1,2.55494629]
[1722212077187,2.42593,3297.7,3297.1,0.12858629]
[1722212077340,2.426,3297.6,3297.1,0.12858629]
[1722212077667,2.426,3297.6,3296.7,9.70665]
[1722212077668,2.426,3297.6,3296.8,2.42659]
[1722212077867,2.426,3297.6,3297.2,0.12852348]
[1722212078032,2.426,3297.6,3296.8,2.42659]
[1722212078232,2.426,3297.6,3297.3,0.12846067]
[1722212078457,2.426,3297.6,3296.8,2.42659]
[1722212078641,2.426,3297.6,3297.4,0.12839787]
[1722212078849,2.42608,3297.5,3296.7,7.28]
[1722212079250,3.413,3297.9,3296.8,0.12877474]
[1722212079476,2.42608,3297.5,3296.8,0.12877474]
[1722212079639,2.42652,3296.9,3296.8,0.12877474]
[1722212079971,3.413,3297.0,3296.0,7.28]
[1722212079972,2.42689,3296.4,3296.0,7.28]
[1722212080132,2.42689,3296.4,3295.4,14.7782]
[1722212080133,2.42702,3296.3,3295.4,2.3582]
[1722212080326,2.42704,3296.2,3295.4,5.40721288]
[1722212080767,2.42712,3296.1,3295.4,3.04901288]
[1722212080986,2.42718,3296.0,3295.4,3.04901288]
[1722212081133,3.413,3296.5,3294.9,2.3582]
[1722212081468,2.42743,3295.7,3294.9,2.3582]
[1722212081846,3.413,3296.0,3294.7,7.28]
[1722212082033,2.42775,3295.3,3294.7,7.28]
[1722212082232,2.42784,3295.1,3294.7,7.28]
[1722212082431,2.42775,3295.3,3294.7,7.28]
[1722212082634,2.42763,3295.4,3294.7,7.28]
[1722212082834,2.69,3295.9,3294.7,7.28]
[1722212082835,2.42786,3295.1,3294.7,7.28]
[1722212083034,2.428,3294.9,3294.7,7.28]
[1722212083388,3.413,3295.5,3294.0,19.65]
[1722212083670,2.42814,3294.7,3293.9,2.3582]
[1722212083990,2.42807,3294.8,3293.9,2.3582]
[1722212084267,2.42824,3294.6,3293.3,7.28]
[1722212084472,2.42824,3294.6,3293.4,0.96382]
[1722212084473,2.42845,3294.3,3293.4,0.96382]
[1722212084658,2.42829,3294.5,3293.4,0.96382]
[1722212084659,2.42852,3294.2,3293.4,0.96382]
[1722212085248,2.42872,3294.0,3293.3,7.28]
[1722212085438,3.413,3294.5,3293.2,2.3582]
[1722212085656,2.42866,3294.0,3292.9,2.42946]
[1722212085835,2.429,3293.6,3293.0,0.242946]
[1722212086150,2.42881,3293.8,3292.7,9.70961]
[1722212086151,2.42881,3293.8,3292.8,2.42954]
[1722212086370,2.42881,3293.8,3292.9,2.42946]
[1722212086688,2.42877,3293.9,3292.9,2.42941]
[1722212087043,2.42877,3293.9,3293.0,2.42938]
[1722212087350,5.84158,3294.1,3293.1,0.242938]
[1722212087552,5.84158,3294.1,3293.1,2.4293]
[1722212087553,2.42867,3294.0,3293.1,2.4293]
[1722212088073,2.42874,3293.9,3293.0,2.42937]
[1722212088388,3.413,3294.1,3292.8,2.4295]
[1722212088389,2.42882,3293.8,3292.8,2.4295]
[1722212088535,2.42882,3293.8,3292.9,1.213911]
[1722212088951,2.42874,3293.9,3292.9,1.213911]
[1722212089135,3.413,3294.1,3292.7,7.28]
[1722212089136,2.42896,3293.6,3292.7,9.70959]
[1722212089383,2.42903,3293.5,3292.7,7.28]
[1722212089685,2.42867,3294.0,3292.7,7.28]
[1722212090042,2.42926,3293.2,3292.7,7.28]
[1722212090245,2.42926,3293.2,3292.4,19.65]
[1722212090456,2.42912,3293.4,3292.5,2.207989]
[1722212090838,2.4291,3293.4,3292.5,2.207989]
[1722212091042,2.42926,3293.2,3292.5,2.207989]
[1722212091267,2.42932,3293.1,3292.5,2.207989]
[1722212091466,2.42942,3293.0,3292.5,2.207989]
[1722212091656,2.42932,3293.1,3292.4,19.65]
[1722212091843,2.42954,3292.8,3292.6,0.1204622]
[1722212092052,2.42954,3292.8,3292.4,19.65]
[1722212092053,2.42954,3292.8,3292.5,0.12052518]
[1722212092289,2.42954,3292.8,3292.7,0.12039921]
[1722212092455,2.4294,3293.0,3292.7,0.12039921]
[1722212092790,2.42925,3293.2,3292.8,0.12033624]
[1722212093086,2.42946,3292.9,3292.8,0.12033624]
[1722212093544,2.42946,3292.9,3292.4,19.65]
[1722212093741,2.42946,3292.9,3292.5,0.12052518]
[1722212093982,2.42945,3293.0,3292.5,0.12052518]
[1722212094183,2.42969,3292.6,3292.5,0.12052518]
[1722212094494,2.42969,3292.6,3292.0,7.28]
[1722212094781,2.42969,3292.6,3291.7,22.08035]
[1722212094988,2.42969,3292.6,3292.1,0.12077717]
[1722212095296,2.4297,3292.6,3291.7,19.65]
[1722212095510,2.42992,3292.3,3292.2,0.12080298]
[1722212095686,3.413,3292.6,3291.7,19.65]
[1722212095849,2.42991,3292.3,3292.2,0.12080298]
[1722212096158,2.43008,3292.1,3291.3,26.93]
[1722212096484,2.43008,3292.1,3291.2,2.43071]
[1722212097095,2.43026,3291.9,3291.0,4.85835]
[1722212097750,5.84308,3292.1,3290.9,2.43092]
[1722212097974,3.413,3292.1,3291.4,2.43057]
[1722212098345,0.3413,3292.5,3291.1,2.43079]
[1722212098549,2.42984,3292.4,3291.3,2.43064]
[1722212098813,2.42984,3292.4,3291.1,2.43079]
[1722212098814,2.43014,3292.0,3291.1,2.43079]
[1722212098966,2.43028,3291.8,3291.1,0.5832812]
[1722212099162,5.84307,3292.1,3291.0,0.971092]
[1722212099389,5.84307,3292.1,3291.1,2.43072]
[1722212099390,2.43014,3292.0,3291.1,2.43072]
[1722212099699,2.43013,3292.0,3291.0,0.971092]
[1722212099851,2.43021,3291.9,3291.0,0.971092]
[1722212100047,2.43034,3291.8,3291.1,0.3401982]
[1722212100357,2.43034,3291.8,3291.0,0.971092]
[1722212100585,3.413,3291.4,3290.8,7.28]
[1722212100751,3.413,3291.4,3290.5,7.28]
[1722212100752,5.84357,3291.4,3290.5,7.28]
[1722212100949,3.413,3291.0,3290.5,7.28]
[1722212101290,5.84388,3291.0,3290.0,19.7]
[1722212101490,4.1744,3292.0,3290.2,2.4314]
[1722212101491,3.413,3291.4,3290.2,2.4314]
[1722212101789,3.413,3292.2,3290.3,0.06078238]
[1722212102000,3.413,3292.2,3290.6,7.28]
[1722212102001,2.43021,3291.9,3290.6,7.28]
[1722212102290,3.7543,3292.2,3291.3,2.43063]
[1722212102509,6.18429,3292.2,3291.1,29.36079]
[1722212102648,3.413,3292.2,3291.5,2.43044]
[1722212102849,3.413,3292.2,3291.2,2.4307]
[1722212103044,3.413,3292.2,3291.5,2.43048]
[1722212103283,3.413,3292.2,3291.2,2.4307]
[1722212103488,2.43011,3292.1,3291.2,2.4307]
[1722212103748,2.3884,3292.5,3291.3,0.06076429]
[1722212103966,2.3884,3292.5,3291.1,31.80905]
[1722212104169,8.3371,3293.0,3291.2,0.06075906]
[1722212104354,0.24294,3292.9,3291.9,2.43019]
[1722212104553,0.24294,3292.9,3292.1,2.43]
[1722212104753,8.3371,3293.0,3291.9,7.28]
[1722212104754,5.9077,3293.0,3291.9,7.28]
[1722212104988,3.413,3293.4,3292.4,2.4298]
[1722212105151,3.413,3293.4,3291.9,7.28]
[1722212105152,3.413,3293.4,3292.3,7.28]
[1722212105356,2.918363,3293.8,3293.0,2.42933]
[1722212105551,2.4947,3294.2,3292.8,2.42953]
[1722212105902,4.92322,3294.2,3293.1,2.42931]
[1722212106053,2.4947,3294.2,3292.9,2.42943]
[1722212106252,2.42915,3293.4,3292.7,7.28]
[1722212106756,3.413,3293.5,3292.8,0.12110637]
[1722212106757,2.42938,3293.1,3292.8,0.12110637]
[1722212106980,2.4292,3293.3,3292.5,19.65]
[1722212107193,3.413,3293.5,3292.6,0.12111158]
[1722212107390,3.413,3293.1,3292.6,0.12111158]
[1722212107590,3.0,3293.4,3292.6,2.55074158]
[1722212107771,5.84203,3293.5,3292.7,2.4296]
[1722212108003,2.42882,3293.8,3292.8,0.12101523]
[1722212108004,3.0,3293.8,3292.8,0.12101523]
[1722212108178,2.42895,3293.6,3292.8,2.55050523]
[1722212108383,2.42909,3293.5,3292.8,0.12101523]
[1722212108682,5.84212,3293.4,3292.6,7.28]
[1722212108885,3.413,3293.4,3292.9,0.11659934]
[1722212109090,3.413,3293.9,3293.1,2.42931]
[1722212109301,3.413,3293.9,3292.6,7.28]
[1722212109302,2.42867,3294.0,3293.2,2.42919]
[1722212109453,2.4947,3294.2,3293.2,0.11641044]
[1722212109454,2.42881,3293.8,3293.2,0.11641044]
[1722212109653,2.4947,3294.2,3293.2,0.11641044]
[1722212109654,3.413,3293.9,3293.2,0.11641044]
[1722212109970,3.413,3293.9,3293.3,0.11634748]
[1722212110301,3.413,3293.9,3292.8,2.4295]
[1722212110464,3.413,3293.9,3293.5,2.42899]
[1722212110664,3.413,3293.9,3293.3,2.42917]
[1722212111003,5.84174,3293.9,3293.0,26.93]
[1722212111303,2.42897,3293.6,3293.4,0.11628452]
[1722212111488,2.42897,3293.6,3293.0,26.93]
[1722212111686,2.42897,3293.6,3293.5,0.11622157]
[1722212111885,2.42885,3293.8,3293.0,26.93]
[1722212112192,3.413,3293.9,3293.0,26.93]
[1722212112392,3.413,3293.9,3293.2,2.42923]
[1722212112606,3.413,3294.4,3293.3,0.06072705]
[1722212112774,0.242824,3294.6,3294.0,2.42864]
[1722212112974,5.8195,3294.8,3294.0,2.42864]
[1722212112975,2.42789,3295.1,3294.1,0.11584394]
[1722212113180,4.80175,3295.5,3294.5,2.42827]
[1722212113496,2.42755,3295.5,3294.5,2.42828]
[1722212113680,2.42755,3295.5,3294.6,0.11552935]
[1722212113681,2.42775,3295.3,3294.6,0.11552935]
[1722212113879,3.413,3295.6,3294.6,0.11552935]
[1722212113880,0.242775,3295.2,3294.6,0.11552935]
[1722212114196,3.413,3295.6,3295.0,2.42786]
[1722212114361,3.413,3295.6,3294.6,0.11552935]
[1722212114560,2.4277,3295.3,3294.5,2.42827]
[1722212114761,3.413,3295.2,3294.6,0.11552935]
[1722212114962,3.413,3295.2,3294.4,2.42835]
[1722212115195,3.413,3295.2,3294.5,0.11559226]
[1722212115196,0.58407,3295.1,3294.5,0.11559226]
[1722212115561,3.01192,3295.1,3294.5,0.11559226]
[1722212115811,3.01192,3295.1,3294.3,7.28]
[1722212116112,0.58407,3295.1,3294.6,0.11552935]
[1722212116311,0.58407,3295.1,3294.3,7.28]
[1722212116312,3.01192,3295.1,3294.3,9.70836]
[1722212116477,2.428,3294.9,3294.7,0.11546644]
[1722212116680,0.399707,3295.0,3294.3,7.28]
[1722212116903,0.399707,3295.0,3293.9,12.42]
[1722212117366,2.42851,3294.2,3293.9,12.42]
[1722212117565,0.242851,3294.1,3293.3,7.28]
[1722212117794,2.42822,3294.6,3293.3,7.28]
[1722212117995,2.4288,3293.8,3293.3,7.28]
[1722212118215,2.42865,3294.1,3293.3,7.28]
[1722212118520,2.42894,3293.7,3293.3,7.28]
[1722212118662,2.42873,3293.9,3293.3,7.28]
[1722212118894,2.7699,3294.1,3293.3,7.28]
[1722212118895,2.42882,3293.8,3293.3,7.28]
[1722212119337,0.3413,3294.1,3293.3,7.28]
[1722212119543,3.413,3293.7,3293.3,7.28]
[1722212119741,2.77025,3293.6,3293.3,7.28]
[1722212120039,3.413,3293.7,3293.3,7.28]
[1722212120199,3.413,3294.1,3293.3,7.28]
[1722212120403,5.42852,3294.2,3293.3,7.28]
[1722212120711,3.413,3294.5,3293.5,2.42901]
[1722212120915,2.42843,3294.3,3293.5,2.42901]
[1722212121113,5.84129,3294.5,3293.3,9.70915]
[1722212121114,2.671353,3294.2,3293.3,9.70915]
[1722212121317,2.671353,3294.2,3293.3,7.28]
[1722212121318,2.42859,3294.1,3293.3,7.28]
[1722212121521,3.413,3294.1,3293.3,7.28]
[1722212121848,3.413,3294.1,3293.4,0.11596738]
[1722212122014,2.42873,3293.9,3293.4,0.11596738]
[1722212122199,3.413,3294.1,3293.4,0.11596738]
[1722212122200,2.671673,3293.8,3293.4,0.11596738]
[1722212122399,0.242873,3293.8,3293.3,2.42917]
[1722212122748,0.242873,3293.8,3293.5,0.11590443]
[1722212122749,2.4288,3293.8,3293.5,0.11590443]
[1722212123051,3.413,3294.1,3293.0,19.7]
[1722212123052,2.42895,3293.6,3293.0,19.7]
[1722212123200,2.42895,3293.6,3292.7,2.42961]
[1722212123403,2.671915,3293.5,3292.7,2.42961]
[1722212123908,2.671915,3293.5,3292.6,7.28]
[1722212124238,2.671915,3293.5,3292.8,2.42953]
[1722212124740,0.242895,3293.5,3292.9,2.42945]
[1722212124946,2.42903,3293.5,3292.7,2.42961]
[1722212125821,2.42893,3293.7,3292.8,2.42952]
[1722212126043,2.4288,3293.8,3292.8,2.42952]
[1722212126202,0.24288,3293.7,3292.9,2.42946]
[1722212126396,2.42873,3293.9,3293.2,2.42924]
[1722212126707,3.413,3294.1,3292.7,2.42961]
[1722212126708,5.84164,3294.1,3292.7,2.42961]
[1722212126932,5.84164,3294.1,3293.3,2.42911]
[1722212126933,3.413,3294.1,3293.3,2.42911]
[1722212127109,0.6084353,3294.1,3293.4,2.42907]
[1722212127318,0.6084353,3294.1,3292.9,2.42944]
[1722212127319,2.42875,3293.9,3292.9,2.42944]
[1722212127516,5.84163,3294.1,3293.1,2.42927]
[1722212127715,5.84163,3294.1,3292.7,3.0]
[1722212127716,3.413,3294.1,3293.3,2.42912]
[1722212128022,4.0214303,3294.1,3293.3,2.42912]
[1722212128225,4.0214303,3294.1,3293.5,2.42897]
[1722212128396,0.242843,3294.2,3293.7,2.42882]
[1722212128594,2.42837,3294.4,3293.5,2.42901]
[1722212128798,2.42837,3294.4,3293.2,26.93]
[1722212128799,2.42837,3294.4,3293.6,2.42894]
[1722212129001,2.42848,3294.3,3293.5,2.42902]
[1722212129256,2.42835,3294.5,3293.6,2.42894]
[1722212129403,0.584135,3294.4,3293.4,2.42907]
[1722212129746,0.584135,3294.4,3293.7,2.42887]
[1722212129957,0.584135,3294.4,3293.5,2.42897]
[1722212130250,0.584135,3294.4,3293.4,2.42909]
[1722212130408,3.012495,3294.4,3293.7,2.42887]
[1722212130604,2.7868535,3294.3,3293.5,2.42897]
[1722212131056,2.42851,3294.2,3293.3,2.42916]
[1722212131264,0.27869235,3294.1,3293.2,26.93]
[1722212131442,2.70732235,3294.1,3293.4,2.42909]
[1722212131645,0.3584135,3294.3,3293.4,2.42909]
[1722212131646,2.7869035,3294.3,3293.4,2.42909]
[1722212131846,2.42857,3294.2,3293.4,2.42909]
[1722212132030,2.4286,3294.1,3293.4,2.42909]
[1722212132358,2.42891,3293.7,3293.2,26.93]
[1722212132530,5.84161,3294.1,3293.2,26.93]
[1722212132718,5.84161,3294.1,3293.2,29.35919]
[1722212132918,5.84161,3294.1,3293.4,2.42909]
[1722212133364,2.42866,3294.0,3293.2,29.35919]
[1722212133529,5.84158,3294.1,3293.4,2.42909]
[1722212134336,3.413,3294.1,3293.6,2.4289]
[1722212135083,3.413,3294.1,3293.8,2.42879]
[1722212135295,0.3584135,3294.3,3293.8,2.42879]
[1722212135572,2.7868735,3294.3,3293.6,2.42889]
[1722212136083,0.3584135,3294.3,3293.7,2.42886]
[1722212136373,0.584135,3294.4,3293.8,2.42874]
[1722212136874,0.584135,3294.4,3293.9,0.11558474]
[1722212137034,3.012505,3294.4,3293.9,0.11558474]
[1722212137231,2.42844,3294.3,3293.9,0.11558474]
[1722212137463,2.42844,3294.3,3293.2,7.28]
[1722212137464,2.42851,3294.2,3293.5,2.429]
[1722212137737,2.9726105,3294.2,3293.5,2.429]
[1722212137940,2.9726105,3294.2,3293.6,0.11577356]
[1722212138352,0.5441005,3294.2,3293.6,2.54471356]
[1722212138557,3.012495,3294.4,3293.7,2.42886]
[1722212138757,2.42796,3295.0,3294.0,2.42862]
[1722212138978,2.42784,3295.1,3294.1,2.54400887]
[1722212139182,2.3675,3295.4,3294.4,2.42835]
[1722212139183,4.79515,3295.4,3294.4,2.42835]
[1722212139401,2.42777,3295.2,3294.5,0.11515737]
[1722212139599,2.42785,3295.1,3294.5,0.11515737]
[1722212139809,2.42785,3295.1,3294.3,2.42839]
[1722212139810,2.913412,3295.1,3294.3,2.42839]
[1722212140113,2.42793,3295.0,3294.6,0.11509446]
[1722212140319,2.42822,3294.6,3293.8,7.28]
[1722212140611,2.42809,3294.8,3293.8,7.28]
[1722212140901,2.42821,3294.6,3293.9,2.54411907]
[1722212141107,2.42836,3294.4,3293.9,0.11539907]
[1722212141463,3.413,3294.1,3293.9,0.11539907]
[1722212141666,5.1986,3294.0,3293.9,0.11539907]
[1722212141864,2.76995,3294.0,3293.9,0.11539907]
[1722212142167,4.71151,3294.4,3293.4,2.42907]
[1722212142418,4.71151,3294.4,3293.5,0.11565084]
[1722212142419,2.42858,3294.1,3293.5,0.11565084]
[1722212142709,3.413,3294.6,3293.5,0.11565084]
[1722212142924,3.413,3294.6,3293.3,2.42915]
[1722212143082,2.4287,3294.0,3293.6,0.11558789]
[1722212143282,2.42852,3294.2,3293.4,0.11571379]
[1722212143589,0.3413,3294.5,3293.2,7.28]
[1722212143791,2.4285,3294.3,3293.5,2.42898]
[1722212144013,2.42863,3294.1,3293.6,0.11558789]
[1722212144223,2.42879,3293.9,3293.6,0.11558789]
[1722212144447,2.42879,3293.9,3293.2,7.28]
[1722212144586,2.42879,3293.9,3293.7,0.11552495]